Cogmind - Beta 16 @@@ ROGUE MODE // 2025.11.04 @ 18:13:50 Player: Rocko1345 Result: Destroyed by Y-54 Guardian with Gatling Laser Performance ------------- Evolutions (4) 2000 Regions Visited (7) 1400 Robots Destroyed (105) 525 Value Destroyed (4275) 4275 Prototype IDs (10) 200 Alien Tech Used (0) 0 Bonus (1072) 1072 TOTAL SCORE: 9472 Bonus ------- High Alert Combat Kills 137 Follower Combat Kills 35 Entered Garrisons 400 Used RIF Installer 500 Cogmind --------- Core Integrity 0/850 Matter 238/300 Energy 82/100 System Corruption 0% Temperature Cool (14) Movement Core (50) Location -6/Garrison Parts ------- > --- POWER (1) -------- (None) > --- PROPULSION (3) --- (None) > --- UTILITY (7) ------ Relay Coupler [NC] (33) Relay Coupler [Heavy] (11) > --- WEAPON (4) ------- (None) > --- INVENTORY (5) ---- Authchip [R/Combat] Relay Coupler [Sentry] (22) Relay Coupler [Sentry] (22) Peak State ------------ > --- POWER ------------ Light Angular Momentum Engine > --- PROPULSION ------- Aluminum Leg Carbon-fiber Leg VSS Leg > --- UTILITY ---------- Improved Heat Sink Improved Heat Sink Large Storage Unit Enhanced Optical Array Improved Signal Interpreter Reaction Control System > --- WEAPON ----------- Particle Gun Heavy Laser Gatling Laser Thermic Laser > --- INVENTORY -------- Improved VTOL Module Improved VTOL Module Improved VTOL Module Large Battery Authchip [R/Combat] Authchip [R/Combat] Relay Coupler [NC] Relay Coupler [NC] Relay Coupler [Swarmer] Relay Coupler [Grunt] Relay Coupler [Sentry] Relay Coupler [Sentry] Relay Coupler [Heavy] Field Recycling Unit Improved EM Shotgun [Rating: 49] Favorites ----------- Power Heavy Ion Engine Engine Heavy Ion Engine Power Core Light Fission Core Propulsion Armored Wheel Leg Aluminum Leg Wheel Armored Wheel Flight Unit Improved VTOL Module Utility Improved Heat Sink Device Improved Heat Sink Storage Large Storage Unit Processor Improved Signal Interpreter Hackware Relay Coupler [NC] Protection Improved Weapon Shielding Weapon Improved Light Cannon Energy Gun Heavy Laser Ballistic Gun Heavy Assault Rifle Ballistic Cannon Improved Light Cannon Launcher Improved Grenade Launcher Build | -11 -10 -9 -8 -7 -7 -6 -6 ------- Run | Yrd Mat Mat Mat Fac Gar Fac Gar Slots Evolved 8 | . . 2 2 2 . 2 . Power . | . . . . . . . . Propulsion 1 | . . . . 1 . . . Utility 5 | . . . 2 1 . 2 . Weapon 2 | . . 2 . . . . . Parts Attached 72 | 6 5 13 9 8 19 5 7 Power 9 | 1 1 1 . 1 3 2 . Engine 7 | 1 1 1 . 1 2 1 . Core 2 | . . . . . 1 1 . Reactor . | . . . . . . . . Propulsion 16 | 2 . 3 1 3 6 . 1 Treads . | . . . . . . . . Leg 6 | 2 . . . . 4 . . Wheel 9 | . . 3 1 3 2 . . Hover . | . . . . . . . . Flight 1 | . . . . . . . 1 Utility 26 | 1 3 1 5 4 4 2 6 Device 9 | . 1 . 2 2 3 1 . Storage 5 | 1 2 . . 2 . . . Processor 3 | . . 1 1 . . 1 . Hackware 6 | . . . . . . . 6 Protection 3 | . . . 2 . 1 . . Artifact . | . . . . . . . . Weapon 21 | 2 1 8 3 . 6 1 . Energy Gun 7 | 1 . . . . 5 1 . Energy Cannon . | . . . . . . . . Ballistic Gun 3 | 1 . 1 1 . . . . Ballistic Cannon 10 | . 1 7 2 . . . . Launcher 1 | . . . . . 1 . . Special Weapon . | . . . . . . . . Impact Weapon . | . . . . . . . . Slashing Weapon . | . . . . . . . . Piercing Weapon . | . . . . . . . . Special Melee Weapon . | . . . . . . . . Unidentified Prototypes 1 | . . . . . . . 1 Corrupted Parts 1 | . . . . . 1 . . System Corruption 4 | . . . . . 4 . . Parts Lost 40 | . 1 6 3 3 16 4 7 Power 4 | . . 1 . 1 2 . . Propulsion 8 | . . 1 1 . 3 1 2 Utility 11 | . 1 . 1 1 5 1 2 Weapon 17 | . . 4 1 1 6 2 3 Highest Loss Streak 7 | . 1 4 2 2 5 2 7 To Critical Strikes . | . . . . . . . . Average Backups 12 | 1 6 12 14 14 14 15 13 Power . | . 1 1 1 1 . . . Propulsion 3 | 1 2 5 2 4 3 3 2 Utility 6 | . 1 3 4 5 9 11 10 Weapon 2 | . 2 2 5 3 1 1 . Tool/Special . | . . . . . . . . Unused Backups 24 | . . 4 7 2 5 . 6 Power 2 | . . . 1 1 . . . Propulsion 9 | . . 4 2 1 . . 2 Utility 11 | . . . 2 . 5 . 4 Weapon 2 | . . . 2 . . . . Tool/Special . | . . . . . . . . Average Slot Usage (%) 89 | . 93 96 97 95 82 81 54 Engine 7 | . 14 8 9 6 6 4 5 Leg 10 | . 28 6 . . 13 19 8 Wheel 10 | . . 15 17 21 7 . . Device 9 | . 4 . 5 10 18 15 10 Storage 9 | . 17 12 9 12 7 6 5 Processor 7 | . . 9 9 7 7 9 11 Protection 2 | . . . 11 4 1 . . Energy Gun 8 | . 1 1 . . 17 22 10 Ballistic Gun 4 | . 14 3 9 6 . . . Ballistic Cannon 16 | . 12 38 27 23 . . . Peak Build Rating 49 | 6 10 22 31 36 44 49 38 Average Rating 28 | 3 8 18 28 33 34 42 31 On Entrance 22 | . 6 10 22 31 34 36 38 Avg Prop Armor Cover (%) . | . . . . . . . . Naked Turns 2 | . . . . . . . 2 Heaviest Build 54 | 13 35 45 49 53 54 47 40 Greatest Support 37 | 20 20 24 24 36 37 37 27 Greatest Overweight (x) 10 | . 1 3 3 2 2 1 10 Average Overweight (x) 1 | . . 1 1 1 1 1 . Largest Inventory Capacity 15 | 8 15 15 15 15 15 15 15 Average Capacity 14 | 7 11 15 15 15 15 15 13 Most Carried 15 | 5 9 15 15 15 15 15 15 Average Carried 12 | 1 6 12 14 14 14 15 13 Final Capacity 15 | 8 15 15 15 15 15 15 5 Final Carried 15 | 3 8 14 15 14 15 15 3 Class Distribution -------------------- 23% | Tank 22% | Mutant 20% | Scavenger-Gunner 17% | Skirmisher 6% | Gunner 6% | Scavenger-Tank 3% | Scavenger-Mutant Dominant Class ---------------- Mutant | -10/Materials Skirmisher | -9/Materials Tank | -8/Materials Tank | -7/Factory Scavenger-Gunner | -7/Garrison Scavenger-Tank | -6/Factory Scavenger-Mutant | -6/Garrison Resources | -11 -10 -9 -8 -7 -7 -6 -6 ----------- Run | Yrd Mat Mat Mat Fac Gar Fac Gar Matter Collected 3056 | 168 295 896 890 225 525 49 8 Remotely . | . . . . . . . . Salvage Created 3409 | . 258 919 984 229 696 323 . Parts 201 | . 13 77 46 23 33 9 . Haulers Intercepted 6 | . . 3 2 . . 1 . Recyclers Shooed 1 | . . 1 . . . . . Parts Field Recycled . | . . . . . . . . Retrieved Matter . | . . . . . . . . Parts Self-Destructed . | . . . . . . . . Prevented . | . . . . . . . . Parts Restored . | . . . . . . . . Kills | -11 -10 -9 -8 -7 -7 -6 -6 ------- Run | Yrd Mat Mat Mat Fac Gar Fac Gar Combat Hostiles Destroyed 81 | . 7 25 20 7 16 6 . Guns 27 | . 2 2 4 . 14 5 . Cannons 52 | . 5 23 16 6 2 . . AOE 1 | . . . . 1 . . . Classes Destroyed 13 | . 4 6 1 1 1 . . Worker 4 | . . 2 1 1 . . . Builder 3 | . . 2 . 1 . . . Hauler 6 | . . 3 2 . . 1 . Recycler 3 | . 1 1 . 1 . . . Operator 1 | . . 1 . . . . . Watcher 7 | . 1 3 2 1 . . . Swarmer 18 | . 3 5 . 4 3 3 . Grunt 38 | . 4 15 11 . 8 . . Duelist 2 | . . 1 . . 1 . . Sentry 17 | . . 4 7 1 3 2 . Specialist 1 | . . . . . 1 . . Hunter 3 | . . . 2 1 . . . Programmer 2 | . . . . 1 . 1 . Best Kill Streak 6 | . 5 5 5 4 6 3 . Combat Bots Only 6 | . 5 3 5 4 6 3 . Max Kills in Single Turn 2 | . 1 2 2 2 1 1 . Gunslinging . | . . . . . . . . Exploded 1 | . . . . 1 . . . Melee . | . . . . . . . . Uniques/NPCs Destroyed . | . . . . . . . . Combat | -11 -10 -9 -8 -7 -7 -6 -6 -------- Run | Yrd Mat Mat Mat Fac Gar Fac Gar Hostile Shots Fired 700 | . 51 128 72 61 249 75 64 Missed 222 | . 17 27 20 26 76 34 22 Hits 478 | . 34 101 52 35 173 41 42 Melee 3 | . . 3 . . . . . Projectile 475 | . 34 98 52 35 173 41 42 Critical Strikes 12 | . 1 2 2 . 6 . 1 Actively Blocked 1 | . . . 1 . . . . Damage Taken 6497 | . 361 1266 822 486 2072 433 1057 Core 1567 | . 57 197 120 45 295 43 810 Absorbed by Shields . | . . . . . . . . Redirected to Shielding 214 | . . . 157 57 . . . Core Remaining (%) 71 | 100 77 50 78 . 51 . . Volleys Fired 230 | . 27 64 38 22 55 15 9 Largest 4 | . 2 4 4 4 4 4 2 Hottest 299 | . 53 132 130 130 289 299 154 Shots Fired 684 | . 54 221 152 88 109 45 15 Gun 253 | . 27 19 38 22 87 45 15 Cannon 431 | . 27 202 114 66 22 . . Launcher . | . . . . . . . . Special . | . . . . . . . . Kinetic 531 | . 54 215 152 88 22 . . Thermal 133 | . . 6 . . 70 45 12 Explosive . | . . . . . . . . Electromagnetic 20 | . . . . . 17 . 3 Robot Hit Streak 11 | . 7 6 11 8 9 11 3 Robot Miss Streak 9 | . 4 6 9 8 5 4 3 Penetration Max . | . . . . . . . . Secondary Targets 2 | . . . . . 2 . . Max Gunslinging Chain 1 | . . . . . 1 . . Shots Hit Robots 330 | . 29 87 71 40 64 29 10 Core Hits 181 | . 11 44 42 27 43 13 1 Critical Kills 1 | . . . 1 . . . . Critical Parts Destroyed . | . . . . . . . . Critical Strikes 20 | . 2 5 8 1 . 2 2 Burn 4 | . . . . . . 2 2 Destroy 1 | . . . 1 . . . . Blast 15 | . 2 5 7 1 . . . Melee Attacks . | . . . . . . . . Impact . | . . . . . . . . Slashing . | . . . . . . . . Piercing . | . . . . . . . . Sneak Attacks . | . . . . . . . . Combat Hostiles . | . . . . . . . . Follow-up Attacks . | . . . . . . . . Damage Inflicted 7101 | . 508 2013 1554 929 1308 613 176 Guns 2439 | . 230 126 290 131 873 613 176 Cannons 4518 | . 278 1871 1253 684 432 . . Explosions 114 | . . . . 114 . . . Melee . | . . . . . . . . Ramming 30 | . . 16 11 . 3 . . Kinetic 5237 | . 508 1939 1543 815 432 . . Thermal 1594 | . . 58 . 114 652 613 157 Explosive . | . . . . . . . . Electromagnetic 240 | . . . . . 221 . 19 Impact . | . . . . . . . . Slashing . | . . . . . . . . Piercing . | . . . . . . . . Highest Corruption 4 | . . . . . 4 . . Average Corruption 4 | . . . . . 4 . . Corruption Purged . | . . . . . . . . Corruption Blocked . | . . . . . . . . Effects 24 | . . . . . 24 . . Message Errors 4 | . . . . . 4 . . Matter Fused 6 | . . . . . 6 . . Heat Flow Errors 6 | . . . . . 6 . . Energy Discharges 1 | . . . . . 1 . . Data Loss (minor) 5 | . . . . . 5 . . Data Loss (major) 1 | . . . . . 1 . . Alerts 1 | . . . . . 1 . . Overload Shots . | . . . . . . . . Overflow Damage 80 | . . 60 3 17 . . . Projectiles 76 | . . 60 3 13 . . . Explosions 4 | . . . . 4 . . . Melee . | . . . . . . . . Knockbacks 40 | . 3 17 13 7 . . . Impact . | . . . . . . . . Kinetic 37 | . 3 15 12 7 . . . Secondary 3 | . . 2 1 . . . . Self-Inflicted Damage 88 | . . 7 5 75 1 . . Shots 1 | . . . . 1 . . . Rammed 5 | . . 3 1 . 1 . . Targets Rammed 5 | . . 3 1 . 1 . . Kicked . | . . . . . . . . Crushed . | . . . . . . . . Highest Temperature 374 | . 34 334 256 3 374 227 240 Average Temperature 86 | . 14 102 52 2 115 86 92 Received Heat Transfer 2334 | . 177 507 396 30 951 72 201 Effects 9 | . . 5 . . 4 . . Energy Bleed 5 | . . 2 . . 3 . . Interference 3 | . . 3 . . . . . Matter Decay 1 | . . . . . 1 . . Siege Activations . | . . . . . . . . Martial Activations . | . . . . . . . . Shielding Activations . | . . . . . . . . Robots Disrupted . | . . . . . . . . Combat Hostiles . | . . . . . . . . Robots Corrupted . | . . . . . . . . Combat Hostiles . | . . . . . . . . Parts Fried 2 | . . . . . 2 . . Impact Corruptions . | . . . . . . . . Robots Melted 2 | . . . . . . 2 . Combat Hostiles 1 | . . . . . . 1 . Parts Melted 6 | . . . . . 1 5 . Heat Transferred 3710 | . . 125 . 50 1443 1544 548 Parts Sabotaged . | . . . . . . . . Parts Stolen . | . . . . . . . . Parts Stripped . | . . . . . . . . Power Chain Reactions . | . . . . . . . . Alert | -11 -10 -9 -8 -7 -7 -6 -6 ------- Run | Yrd Mat Mat Mat Fac Gar Fac Gar Maximum Alert Level 3 | . . 2 2 . 3 2 1 Low Security (%) 45 | 100 100 53 40 100 13 . 80 Level 1 30 | . . 30 52 . 22 77 19 Level 2 17 | . . 15 6 . 40 22 . Level 3 6 | . . . . . 23 . . Level 4 . | . . . . . . . . Level 5 . | . . . . . . . . High Security . | . . . . . . . . Max Security . | . . . . . . . . Peak Influence 863 | . 91 437 415 156 863 447 231 Initial 447 | . . 16 177 156 99 447 181 Average 253 | . 20 179 250 66 451 328 184 Influence Increases 3167 | . 200 822 637 276 954 178 100 Destroy 0b10 Robot/C 1640 | . 140 500 400 140 340 120 . Destroy 0b10 Robot/NC 120 | . 10 60 25 20 . 5 . Destroy Leader 366 | . 32 102 138 42 20 32 . Allied During Kill 4 | . . . . . 4 . . Successful Hack 93 | . 15 43 30 . . 5 . Disable Machine 90 | . . 30 30 15 . 15 . Anti-Garrison Action 500 | . . . . . 400 . 100 Destroy Structure 69 | . 3 12 14 29 10 1 . Lose Combat Pursuer 285 | . . 75 . 30 180 . . Influence Decreases 2956 | . 160 441 714 478 243 772 148 Entered New Map 983 | . . 24 244 188 43 406 78 Time Decay 1533 | . 150 357 440 260 . 326 . Lost Part 400 | . 10 60 30 30 160 40 70 Lost Ally 40 | . . . . . 40 . . Squads Dispatched 9 | . 1 1 3 2 . 2 . Investigation 3 | . . 1 1 1 . . . Extermination 2 | . . . . 1 . 1 . Reinforcement 3 | . 1 . 2 . . . . Assault . | . . . . . . . . Garrison 1 | . . . . . . 1 . Intercept . | . . . . . . . . Searches Triggered . | . . . . . . . . Construction Impeded 1 | . . . 1 . . . . Haulers Reinforced . | . . . . . . . . Active Scanning Responses . | . . . . . . . . Cargo Convoy Interrupts . | . . . . . . . . Stealth | -11 -10 -9 -8 -7 -7 -6 -6 --------- Run | Yrd Mat Mat Mat Fac Gar Fac Gar Distress Signals 5 | . . 4 1 . . . . Communications Jammed . | . . . . . . . . Distress Signals . | . . . . . . . . Times Spotted 132 | . 10 39 25 12 31 6 9 Peak Tracking Total 7 | . 6 6 5 5 7 3 5 Tactical Retreats 13 | . . 5 . 2 6 . . Traps | -11 -10 -9 -8 -7 -7 -6 -6 ------- Run | Yrd Mat Mat Mat Fac Gar Fac Gar Traps Triggered 9 | . . . 1 . 6 . 2 Indirectly . | . . . . . . . . Trap Hack Attempts . | . . . . . . . . Triggered . | . . . . . . . . Disarmed . | . . . . . . . . Reprogrammed . | . . . . . . . . Reused . | . . . . . . . . Traps Extracted . | . . . . . . . . Installed . | . . . . . . . . Triggered . | . . . . . . . . Machines | -11 -10 -9 -8 -7 -7 -6 -6 ---------- Run | Yrd Mat Mat Mat Fac Gar Fac Gar Machines Disabled 10 | . . 2 2 1 4 1 . Max in Single Turn 1 | . . 1 1 1 1 1 . Garrison Relay 4 | . . . . . 4 . . Machines Repaired . | . . . . . . . . Machines Dismantled . | . . . . . . . . Machines Sabotaged . | . . . . . . . . Overloaded Fab Kills . | . . . . . . . . Hacking | -11 -10 -9 -8 -7 -7 -6 -6 --------- Run | Yrd Mat Mat Mat Fac Gar Fac Gar Machines Accessed 23 | . 4 8 5 1 2 3 . Terminals 18 | . 4 7 4 . 2 1 . Fabricators . | . . . . . . . . Repair Stations . | . . . . . . . . Recycling Units 1 | . . . . . . 1 . Scanalyzers 2 | . . 1 1 . . . . Garrison Access 2 | . . . . 1 . 1 . Total Hacks 54 | . 10 21 12 2 3 6 . Successful 35 | . 5 13 9 1 1 6 . Failed 18 | . 5 8 2 1 2 . . Catastrophic 3 | . 1 . . 1 1 . . Database Lockouts 1 | . . . 1 . . . . Manual 12 | . 2 5 3 . 2 . . Terminals 43 | . 10 18 9 . 3 3 . Fabricators . | . . . . . . . . Repair Stations . | . . . . . . . . Recycling Units 1 | . . . . . . 1 . Scanalyzers 6 | . . 3 3 . . . . Garrison Access 4 | . . . . 2 . 2 . Terminal Hacks 20 | . 3 8 5 . 1 3 . Prototype ID Bank 4 | . 1 2 . . . 1 . Open Door 1 | . . . . . 1 . . Terminal Index 1 | . . 1 . . . . . Scanalyzer Index 1 | . . . 1 . . . . Locate Traps 6 | . . 2 3 . . 1 . Dispatch Records 1 | . 1 . . . . . . Investigation Status 1 | . . . 1 . . . . Registered Components 1 | . 1 . . . . . . Zone Layout 4 | . . 3 . . . 1 . Fabricator Hacks . | . . . . . . . . Repair Station Hacks . | . . . . . . . . Recycling Unit Hacks 1 | . . . . . . 1 . Report Inventory 1 | . . . . . . 1 . Scanalyzer 3 | . . 2 1 . . . . Insert Component 2 | . . 2 . . . . . Retrieve Study 1 | . . . 1 . . . . Garrison Access Hacks 3 | . . . . 1 . 2 . Unlock Access 2 | . . . . 1 . 1 . Coupler Status 1 | . . . . . . 1 . Unauthorized Hacks 8 | . 2 3 3 . . . . Terminals 8 | . 2 3 3 . . . . Botnet 8 | . 2 3 3 . . . . Fabricators . | . . . . . . . . Repair Stations . | . . . . . . . . Recycling Units . | . . . . . . . . Scanalyzers . | . . . . . . . . Garrison Access . | . . . . . . . . Data Cores Recovered 1 | . . 1 . . . . . Used . | . . . . . . . . Hacking Detections 16 | . 3 6 2 1 2 2 . Full Trace Events 3 | . . 1 1 1 . . . Feedback Events . | . . . . . . . . Feedback Blocked . | . . . . . . . . Robot Schematics Acquired . | . . . . . . . . Robots Built . | . . . . . . . . Authchips . | . . . . . . . . Time . | . . . . . . . . Total Robot Build Rating . | . . . . . . . . Part Schematics Acquired . | . . . . . . . . Parts Built . | . . . . . . . . Authchips . | . . . . . . . . Time . | . . . . . . . . Total Part Build Rating . | . . . . . . . . Part Studies Acquired 1 | . . . 1 . . . . Parts Repaired . | . . . . . . . . Time . | . . . . . . . . Parts Recycled . | . . . . . . . . Recycled Matter . | . . . . . . . . Retrieved Matter . | . . . . . . . . Retrieved Components . | . . . . . . . . Parts Scanalyzed . | . . . . . . . . Part Schematics Acquired . | . . . . . . . . Parts Damaged . | . . . . . . . . Bothacking | -11 -10 -9 -8 -7 -7 -6 -6 ------------ Run | Yrd Mat Mat Mat Fac Gar Fac Gar Used RIF Installer 1 | . . . . . 1 . . Robots Hacked . | . . . . . . . . Non-combat . | . . . . . . . . Combat . | . . . . . . . . Robot Hacks Applied . | . . . . . . . . Relay Couplers Released 17 | . . . . . 17 . . Machine Destruction 17 | . . . . . 17 . . Attached 5 | . . . . . . . 5 Fabnet Peak Effective % . | . . . . . . . . Robots Rewired 2 | . . . . . 2 . . Allies Hacked . | . . . . . . . . Hacks Repelled . | . . . . . . . . Allies | -11 -10 -9 -8 -7 -7 -6 -6 -------- Run | Yrd Mat Mat Mat Fac Gar Fac Gar Total Allies 2 | . . . . . 2 . . Largest Group 2 | . . . . . 2 . . Highest-Rated Group 56 | . . . . . 56 . . Highest-Rated Ally 31 | . . . . . 31 . . Total Orders . | . . . . . . . . Ally Attacks 10 | . . . . . 10 . . Total Damage 170 | . . . . . 170 . . Kills 1 | . . . . . 1 . . Allies Corrupted . | . . . . . . . . Allies Melted . | . . . . . . . . Intel | -11 -10 -9 -8 -7 -7 -6 -6 ------- Run | Yrd Mat Mat Mat Fac Gar Fac Gar Active Infowar (turns) 2060 | . 210 1180 144 . . 385 141 Optics 1850 | . . 1180 144 . . 385 141 Seismic 210 | . 210 . . . . . . Robot Analysis Total . | . . . . . . . . Derelict Logs Recovered . | . . . . . . . . Drone Launches . | . . . . . . . . Drone Recoveries . | . . . . . . . . Exploration | -11 -10 -9 -8 -7 -7 -6 -6 ------------- Run | Yrd Mat Mat Mat Fac Gar Fac Gar Turns Passed 6604 | 97 666 1303 1086 700 1868 722 162 Spaces Moved 3910 | 80 380 676 822 539 979 354 80 Core 44 | 16 . . . . . . 28 Treads . | . . . . . . . . Legs 1540 | 64 380 134 . . 556 354 52 Wheels 2326 | . . 542 822 539 423 . . Hover . | . . . . . . . . Flight . | . . . . . . . . Fastest Speed 50 | 50 120 105 105 105 105 185 50 Average Speed 135 | 106 147 135 109 108 151 185 144 Slowest Speed 550 | 120 190 260 135 120 190 186 550 Overloaded Moves . | . . . . . . . . Propulsion Burnouts . | . . . . . . . . Robots Hopped . | . . . . . . . . Potential Cave-ins . | . . . . . . . . Cave-ins Triggered . | . . . . . . . . Exploration Rate (%) 28 | 3 38 49 41 11 57 8 17 Regions Visited 7 Branch Regions . Pre-discovered Areas . | . . . . . . . . Known Exits Taken 3 | . . . 1 1 . 1 . Unknown Exits Taken 3 | 1 1 1 . . . . . Scrap Searched . | . . . . . . . . Spaces Dug . | . . . . . . . . Terrain Destroyed 45 | . 2 6 12 25 . . . Melee . | . . . . . . . . Projectile 21 | . 2 6 12 1 . . . AOE 24 | . . . . 24 . . . Terrain Rammed . | . . . . . . . . Walls Destroyed . | . . . . . . . . Machines Disabled . | . . . . . . . . Actions | -11 -10 -9 -8 -7 -7 -6 -6 --------- Run | Yrd Mat Mat Mat Fac Gar Fac Gar Total 4711 | 90 431 911 911 603 1275 380 110 Wait 360 | . 12 136 19 26 161 6 . Move 3902 | 79 379 675 821 538 977 353 80 Hop . | . . . . . . . . Pick Up 54 | 5 6 14 11 4 14 . . Fast Attach 32 | 4 2 4 1 2 12 3 4 Attach 22 | 2 1 4 5 2 4 . 4 Detach 1 | . . . 1 . . . . Swap 24 | . 2 6 5 4 5 2 . Drop 38 | . 2 5 9 5 13 1 3 Fire 230 | . 27 64 38 22 55 15 9 Melee . | . . . . . . . . Ram 5 | . . 3 1 . 1 . . Kick . | . . . . . . . . Crush . | . . . . . . . . Escape Stasis 40 | . . . . . 30 . 10 Rewire 3 | . . . . . 3 . . Trap . | . . . . . . . . Miscellaneous . | . . . . . . . . Route ------- -11/Scrapyard -10/Materials -9/Materials (discovered 2 exits: *Mat / [*Min]) -8/Materials (discovered 2 exits: *Fac / *Sto) -7/Factory (discovered 2 exits: *Fac / Gar) -7/Garrison (discovered 2 exits: *Fac x2) -6/Factory -6/Garrison History --------- Turn | Location | Event 2 | -11/Scrapyard | Met Revision 17 5 | -11/Scrapyard | Discovered new exit (range 16) 98 | -11/Scrapyard | Entered Materials 307 | -10/Materials | Build established: Mutant 381 | -10/Materials | Discovered new exit (range 11) 764 | -10/Materials | Entered another Materials area 764 | -9/Materials | Evolved 2 slots: Weapon x2 1188 | -9/Materials | Build established: Skirmisher 1278 | -9/Materials | Discovered new exit (range 12) 1551 | -9/Materials | Lost 4 parts (4w) 1681 | -9/Materials | Discovered new exit (range 17) 2067 | -9/Materials | Entered another Materials area 2067 | -8/Materials | Evolved 2 slots: Utility x2 2149 | -8/Materials | Central database locked down 2191 | -8/Materials | Discovered new exit (range 19) 2234 | -8/Materials | Identified exit to Storage 2387 | -8/Materials | Build established: Tank 2406 | -8/Materials | Discovered new exit (range 12) 3152 | -8/Materials | Identified exit to Factory 3153 | -8/Materials | Entered Factory 3153 | -7/Factory | Evolved 2 slots: Propulsion x1, Utility x1 3471 | -7/Factory | Discovered new exit (range 5) 3475 | -7/Factory | Identified exit to Factory 3852 | -7/Factory | Identified exit to Garrison 3853 | -7/Factory | Entered Garrison 3960 | -7/Garrison | Lost 5 parts (1n4w) 4067 | -7/Garrison | Triggered checkpoint 4087 | -7/Garrison | Garrison Relay disabled 4105 | -7/Garrison | Garrison Relay disabled 4208 | -7/Garrison | Build established: Mutant 4509 | -7/Garrison | Lost 3 parts (1p1n1u) 4590 | -7/Garrison | Lost 3 parts (1n1u1w) 4909 | -7/Garrison | Triggered checkpoint 4924 | -7/Garrison | Build established: Scavenger-Gunner 5051 | -7/Garrison | Discovered exit to Factory (range 14) 5219 | -7/Garrison | Triggered checkpoint 5278 | -7/Garrison | Garrison Relay disabled 5469 | -7/Garrison | Installed Relay Interface Framework 5511 | -7/Garrison | Triggered checkpoint 5540 | -7/Garrison | Garrison Relay disabled 5697 | -7/Garrison | Discovered exit to Factory (range 13) 5721 | -7/Garrison | Entered Factory 5721 | -6/Factory | Evolved 2 slots: Utility x2 6292 | -6/Factory | Build established: Scavenger-Tank 6367 | -6/Factory | Garrison activated, responded to threat 6441 | -6/Factory | Identified exit to Garrison 6443 | -6/Factory | Entered Garrison 6535 | -6/Garrison | Spotted B-75 Beast 6540 | -6/Garrison | Assembled breached garrison interior 6584 | -6/Garrison | Released all parts (8) 6589 | -6/Garrison | Core integrity fell below 50% 6604 | -6/Garrison | Core integrity fell below 20% 6605 | -6/Garrison | Destroyed by Y-54 Guardian with Gatling Laser Last Messages --------------- 06584_ Released Imp. Signal Interpreter. 06584_ Released Imp. Heat Sink. 06584_ Released Imp. Deuterium Engine. 06584_ Released Relay Coupler [NC]. 06584_ Released Relay Coupler [Swarmer]. 06584_ Released Relay Coupler [Grunt]. 06586_ Acquired Relay Coupler [NC]. 06588_ Acquired Authchip [R/Combat]. 06591_ Acquired Relay Coupler [Heavy]. 06591_ Knocked back. 06593_ Acquired Prototype Flight Unit. 06593_ Identified Imp. VTOL Module. 06593_ Faulty integration triggers heat surge (+277). 06594_ Knocked back. 06595_ Dropped Faulty Imp. VTOL Module. 06597_ Acquired 4 matter. 06597_ Knocked back. 06597_ Authchip [R/Combat] destroyed. 06602_ C-45 Heavy ARC bursts open, deploying its payload. 06602_ P-60 Hacker unfolds itself. Map ----- +----------------------------------------------------+ | ?????????????????????????????????????????????????? | | ?????????????????????????????????????????????????? | | ?????????????????????????????????????????????????? | | ?????????????????????????????????????????????????? | | ?????????????????????????????????????????????????? | | ?????????????????????????????????????????????????? | | ?????????????????????????????????????????????????? | | ?????????????????????????????????????????????????? | | ?????????????????????????????????????????????????? | | ?????????????????????????????????????????????????? | | ?????????????????????????????????????????????????? | | ????????????????????? ?????????????????????????? | | ????????????????????# ?????????????????????????? | | ????????????????????# ?????????????????????????? | | ????????????????????# ?????????? #?????????????? | | ????????????????????# ???####?? #?????????????? | | ????????????????????# ???gg #? #?????????????? | | ????????????????????# #?g ## ??????????????? | | ????????????????????# ? ?#?????????????? | | ????????????????????# ? ? #?????????????? | | ????????????????????# ? ? #?????????????? | | ????????????????????# #? #? #?????????????? | | ??????????????????### ## ## ###???????????? | | ??????????????????#g #???????????? | | ??????????????????#g #???????????? | | ??????????????????# % @ Y#???????????? | | ??????????????????# g #???????????? | | ??????????????????### ## ## ###???????????? | | ????????????????????# ## ## #?????????????? | | ????????????????????# ??????????? | | ????????????????????# ??????????? | | ????????????????????# ??????????? | | ????????????????????# ## p ########???????????? | | ????????????????????# #? C%C#??????????????????? | | ????????????????????# #??####??????????????????? | | ????????????????????" #????????????????????????? | | ????????????????????# #????????????????????????? | | ????????????????????# #????????????????????????? | | ????????????????????# #????????????????????????? | | #####################% #????????????????????????? | | ^ !=!#????????????????????????? | | =!=#????????????????????????? | | ^ *! #????????????????????????? | | ######+#######+##########????????????????????????? | | ?????# #?????# #?????????????????????????????????? | | ?????# #?????# #?????????????????????????????????? | | ?????# #?????# #?????????????????????????????????? | | ?????# #?????# #?????????????????????????????????? | | ?????# #?????# #?????????????????????????????????? | | ?????# #?????# #?????????????????????????????????? | +----------------------------------------------------+ Best States ------------- Heat Dissipation 76 Energy Generation 18 Energy Capacity 290 Matter Stores 390 Matter Capacity 450 Sight Range 22 Terrain Scan Density 10 Base Temperature (-) 100 Armor Coverage 225 Propulsion Shielding 66 Weapon Shielding 66 Evasion (%) 55 Kinecelleration 30 Relay Coupler Types 2 Relay Coupler Value 44 Authchip Count 2 Item Schematics ----------------- None Robot Schematics ------------------ None Fabricated ------------ Nothing Repaired ---------- Nothing Studied --------- Assault Cannon | -8/Materials | Hacked Alien Tech Used ----------------- None Achievements -------------- None Challenges ------------ None Game ------ Seed NeutronBraceDoublenader Manual? 0 Play Time 00:47:15 Cumulative 234.6 hours Start 2025.11.04 @ 17:15:36 End 2025.11.04 @ 18:13:50 Sessions 1 Manual Loads 0 Difficulty Rogue Special Mode None Game No. 284 Rogue 110 Adventurer 174 Explorer 0 Win Type - Total 1 Types 1/0/0/0/0/0/0/0/0/0 Lore% 65 Gallery% 60 Achievement% 42 Wizard Run 0 Options --------- Layout 0 ASCII 0 Keyboard 1 Movement Numpad Keybinds 0 Fullscreen 1 Font 18/Terminus Map View 76x50 Zoom Use 0% Tactical HUD 1 Map Filters NONE Filters NONE Steam 1 RUN: 32300884-9433-4e3f-9d8e-c18bfd0961c4